Workbook

Sheet LotteryRewardConfig
B1: Id | C1: Reward | D1: ItemName | E1: Pool | F1: Weight | G1: OpenRules | H1: Star | I1: NoUse | J1: Quality
B2: int | C2: mut,int#int,1 | D2: string | E2: int | F2: int | G2: mut,int#int,1 | H2: int | I2: string | J2: int
B3: 2 | C3: 2 | D3: 0 | E3: 2 | F3: 2 | G3: 4 | H3: 4 | I3: 0 | J3: 0
B4: 索引 | C4: 道具 | D4: 道具名称 | E4: 属于的卡池（1群英卡池，2友情池，3普通池，11-15元素卡池，101东海寻仙卡池，其余特殊卡池LotterySpecialConfig） | F4: 权重 | G4: 角色加入条件 (1玩家抽卡次数 2等级 ） | H4: 是否为保底 0非保底 N对应special表的ID 指定清除该行计数 | I4: 备注 | J4: 备注
A5: 默认值 | B5: 0 | E5: 0 | F5: 0 | H5: 0
A6: 正确性校对
A7: 校对值
B8: 1 | C8: 10001#1 | D8: 孙策 | E8: 1 | F8: 32 | H8: 7 | J8: 45
B9: 2 | C9: 10006#1 | D9: 张郃 | E9: 1 | F9: 32 | H9: 7 | J9: 45
B10: 3 | C10: 10008#1 | D10: 曹操 | E10: 1 | F10: 32 | H10: 7 | J10: 45
B11: 4 | C11: 10009#1 | D11: 小乔 | E11: 1 | F11: 32 | H11: 7 | J11: 45
B12: 5 | C12: 10011#1 | D12: 司马懿 | E12: 1 | F12: 32 | H12: 7 | J12: 45
B13: 6 | C13: 10014#1 | D13: 周瑜 | E13: 1 | F13: 32 | H13: 7 | J13: 45
B14: 7 | C14: 10022#1 | D14: 诸葛亮 | E14: 1 | F14: 32 | H14: 7 | J14: 45
B15: 8 | C15: 10023#1 | D15: 赵云 | E15: 1 | F15: 32 | H15: 7 | J15: 45
B16: 9 | C16: 10026#1 | D16: 吕布 | E16: 1 | F16: 32 | H16: 7 | J16: 45
B17: 10 | C17: 10040#1 | D17: 张昭 | E17: 1 | F17: 32 | H17: 7 | J17: 45
B18: 11 | C18: 10041#1 | D18: 华雄 | E18: 1 | F18: 32 | H18: 7 | J18: 45
B19: 12 | C19: 10085#1 | D19: 曹植 | E19: 1 | F19: 32 | H19: 7 | J19: 45
B20: 13 | C20: 10086#1 | D20: 刘婵 | E20: 1 | F20: 32 | H20: 7 | J20: 45
B21: 14 | C21: 10088#1 | D21: 左慈 | E21: 1 | F21: 32 | H21: 7 | J21: 45
B22: 15 | C22: 10089#1 | D22: 黄忠 | E22: 1 | F22: 32 | H22: 7 | J22: 45
B23: 16 | C23: 10090#1 | D23: 陈宫 | E23: 1 | F23: 32 | H23: 7 | J23: 45
B24: 17 | C24: 10002#1 | D24: 张辽 | E24: 1 | F24: 100 | H24: 7 | J24: 35
B25: 18 | C25: 10003#1 | D25: 夏侯惇 | E25: 1 | F25: 100 | H25: 7 | J25: 35
B26: 19 | C26: 10004#1 | D26: 大乔 | E26: 1 | F26: 100 | H26: 7 | J26: 35
B27: 20 | C27: 10005#1 | D27: 郭嘉 | E27: 1 | F27: 100 | H27: 7 | J27: 35
B28: 21 | C28: 10007#1 | D28: 刘备 | E28: 1 | F28: 100 | H28: 7 | J28: 35
B29: 22 | C29: 10010#1 | D29: 马超 | E29: 1 | F29: 100 | H29: 7 | J29: 35
B30: 23 | C30: 10012#1 | D30: 张飞 | E30: 1 | F30: 100 | H30: 7 | J30: 35
B31: 24 | C31: 10013#1 | D31: 袁绍 | E31: 1 | F31: 100 | H31: 7 | J31: 35
B32: 25 | C32: 10015#1 | D32: 关羽 | E32: 1 | F32: 100 | H32: 7 | J32: 35
B33: 26 | C33: 10016#1 | D33: 孙坚 | E33: 1 | F33: 100 | H33: 7 | J33: 35
B34: 27 | C34: 10017#1 | D34: 孙权 | E34: 1 | F34: 100 | H34: 7 | J34: 35
B35: 28 | C35: 10018#1 | D35: 荀彧 | E35: 1 | F35: 100 | H35: 7 | J35: 35
B36: 29 | C36: 10019#1 | D36: 董卓 | E36: 1 | F36: 100 | H36: 7 | J36: 35
B37: 30 | C37: 10020#1 | D37: 曹仁 | E37: 1 | F37: 100 | H37: 7 | J37: 35
B38: 31 | C38: 10021#1 | D38: 太史慈 | E38: 1 | F38: 100 | H38: 7 | J38: 35
B39: 32 | C39: 10024#1 | D39: 华佗 | E39: 1 | F39: 100 | H39: 7 | J39: 35
B40: 33 | C40: 10033#1 | D40: 黄月英 | E40: 1 | F40: 100 | H40: 7 | J40: 35
B41: 34 | C41: 10042#1 | D41: 袁术 | E41: 1 | F41: 100 | H41: 7 | J41: 35
B42: 35 | C42: 10043#1 | D42: 貂蝉 | E42: 1 | F42: 100 | H42: 7 | J42: 35
B43: 36 | C43: 10087#1 | D43: 孙尚香 | E43: 1 | F43: 100 | H43: 7 | J43: 35
B44: 37 | C44: 10025#1 | D44: 贾诩 | E44: 1 | F44: 157 | H44: 7 | J44: 25
B45: 38 | C45: 10027#1 | D45: 张角 | E45: 1 | F45: 157 | H45: 7 | J45: 25
B46: 39 | C46: 10028#1 | D46: 曹丕 | E46: 1 | F46: 157 | H46: 7 | J46: 25
B47: 40 | C47: 10029#1 | D47: 魏延 | E47: 1 | F47: 157 | H47: 7 | J47: 25
B48: 41 | C48: 10030#1 | D48: 庞统 | E48: 1 | F48: 157 | H48: 7 | J48: 25
B49: 42 | C49: 10031#1 | D49: 许褚 | E49: 1 | F49: 157 | H49: 7 | J49: 25
B50: 43 | C50: 10032#1 | D50: 甘宁 | E50: 1 | F50: 157 | H50: 7 | J50: 25
B51: 44 | C51: 10034#1 | D51: 马岱 | E51: 1 | F51: 157 | H51: 7 | J51: 25
B52: 45 | C52: 10035#1 | D52: 陆逊 | E52: 1 | F52: 157 | H52: 7 | J52: 25
B53: 46 | C53: 10036#1 | D53: 鲁肃 | E53: 1 | F53: 157 | H53: 7 | J53: 25
B54: 47 | C54: 10037#1 | D54: 公孙瓒 | E54: 1 | F54: 157 | H54: 7 | J54: 25
B55: 48 | C55: 10038#1 | D55: 于吉 | E55: 1 | F55: 157 | H55: 7 | J55: 25
B56: 49 | C56: 10039#1 | D56: 姜维 | E56: 1 | F56: 157 | H56: 7 | J56: 25
B57: 50 | C57: 10044#1 | D57: 典韦 | E57: 1 | F57: 157 | H57: 7 | J57: 25
B58: 51 | C58: 10045#1 | D58: 甄姬 | E58: 1 | F58: 157 | H58: 7 | J58: 25
B59: 52 | C59: 10046#1 | D59: 吕蒙 | E59: 1 | F59: 157 | H59: 7 | J59: 25
B60: 53 | C60: 10057#1 | D60: 乐进 | E60: 1 | F60: 938 | H60: 6 | J60: 5
B61: 54 | C61: 10058#1 | D61: 夏侯渊 | E61: 1 | F61: 938 | H61: 6 | J61: 5
B62: 55 | C62: 10059#1 | D62: 少年曹操 | E62: 1 | F62: 938 | H62: 6 | J62: 5
B63: 56 | C63: 10060#1 | D63: 少年甄姬 | E63: 1 | F63: 938 | H63: 6 | J63: 5
B64: 57 | C64: 10061#1 | D64: 孟获 | E64: 1 | F64: 938 | H64: 6 | J64: 5
B65: 58 | C65: 10062#1 | D65: 祝融 | E65: 1 | F65: 938 | H65: 6 | J65: 5
B66: 59 | C66: 10063#1 | D66: 少年赵云 | E66: 1 | F66: 938 | H66: 6 | J66: 5
B67: 60 | C67: 10064#1 | D67: 少年关羽 | E67: 1 | F67: 938 | H67: 6 | J67: 5
B68: 61 | C68: 10065#1 | D68: 凌统 | E68: 1 | F68: 938 | H68: 6 | J68: 5
B69: 62 | C69: 10066#1 | D69: 步练师 | E69: 1 | F69: 938 | H69: 6 | J69: 5
B70: 63 | C70: 10067#1 | D70: 少年周瑜 | E70: 1 | F70: 938 | H70: 6 | J70: 5
B71: 64 | C71: 10068#1 | D71: 少女小乔 | E71: 1 | F71: 938 | H71: 6 | J71: 5
B72: 65 | C72: 10069#1 | D72: 文丑 | E72: 1 | F72: 938 | H72: 6 | J72: 5
B73: 66 | C73: 10070#1 | D73: 颜良 | E73: 1 | F73: 938 | H73: 6 | J73: 5
B74: 67 | C74: 10071#1 | D74: 少年吕布 | E74: 1 | F74: 938 | H74: 6 | J74: 5
B75: 68 | C75: 10072#1 | D75: 少女貂蝉 | E75: 1 | F75: 938 | H75: 6 | J75: 5
B76: 69 | C76: 10047#1 | D76: 程昱 | E76: 1 | F76: 10000 | H76: 0 | J76: 0
B77: 70 | C77: 10048#1 | D77: 李典 | E77: 1 | F77: 10000 | H77: 0 | J77: 0
B78: 71 | C78: 10049#1 | D78: 张苞 | E78: 1 | F78: 10000 | H78: 0 | J78: 0
B79: 72 | C79: 10050#1 | D79: 关平 | E79: 1 | F79: 10000 | H79: 0 | J79: 0
B80: 73 | C80: 10051#1 | D80: 黄盖 | E80: 1 | F80: 10000 | H80: 0 | J80: 0
B81: 74 | C81: 10052#1 | D81: 周泰 | E81: 1 | F81: 10000 | H81: 0 | J81: 0
B82: 75 | C82: 10053#1 | D82: 张梁 | E82: 1 | F82: 10000 | H82: 0 | J82: 0
B83: 76 | C83: 10054#1 | D83: 何进 | E83: 1 | F83: 10000 | H83: 0 | J83: 0
B84: 77 | C84: 11008#50 | D84: 曹操 | E84: 11 | F84: 300 | H84: 85 | I84: 魏阵营抽
B85: 78 | C85: 11011#50 | D85: 司马懿 | E85: 11 | F85: 300 | H85: 85 | I85: 魏阵营抽
B86: 79 | C86: 11006#50 | D86: 张郃 | E86: 11 | F86: 300 | H86: 85 | I86: 魏阵营抽
B87: 80 | C87: 11073#50 | D87: 曹植 | E87: 11 | F87: 300 | H87: 85 | I87: 魏阵营抽
B88: 81 | C88: 11018#50 | D88: 荀彧 | E88: 11 | F88: 1000 | H88: 85 | I88: 魏阵营抽
B89: 82 | C89: 11003#50 | D89: 夏侯惇 | E89: 11 | F89: 1000 | H89: 85 | I89: 魏阵营抽
B90: 83 | C90: 11020#50 | D90: 曹仁 | E90: 11 | F90: 1000 | H90: 85 | I90: 魏阵营抽
B91: 84 | C91: 11002#50 | D91: 张辽 | E91: 11 | F91: 1000 | H91: 85 | I91: 魏阵营抽
B92: 85 | C92: 11005#50 | D92: 郭嘉 | E92: 11 | F92: 1000 | H92: 85 | I92: 魏阵营抽
B93: 86 | C93: 11028#50 | D93: 曹丕 | E93: 11 | F93: 1000 | H93: 85 | I93: 魏阵营抽
B94: 87 | C94: 11031#50 | D94: 许褚 | E94: 11 | F94: 1000 | H94: 85 | I94: 魏阵营抽
B95: 88 | C95: 11044#50 | D95: 典韦 | E95: 11 | F95: 1000 | H95: 85 | I95: 魏阵营抽
B96: 89 | C96: 11045#50 | D96: 甄姬 | E96: 11 | F96: 1000 | H96: 85 | I96: 魏阵营抽
B97: 90 | C97: 11057#30 | D97: 乐进 | E97: 11 | F97: 17450 | H97: 0 | I97: 魏阵营抽
B98: 91 | C98: 11058#30 | D98: 夏侯渊 | E98: =E97 -> 11 | F98: 17450 | H98: 0 | I98: 魏阵营抽
B99: 92 | C99: 11059#30 | D99: 少年曹操 | E99: =E98 -> 11 | F99: 17450 | H99: 0 | I99: 魏阵营抽
B100: 93 | C100: 11060#30 | D100: 少女甄姬 | E100: =E99 -> 11 | F100: 17450 | H100: 0 | I100: 魏阵营抽
B101: 94 | C101: 12008#25 | D101: 1阵营5星 | E101: 11 | F101: 6000 | H101: 0 | I101: 魏阵营抽
B102: 95 | C102: 12008#20 | D102: 1阵营5星 | E102: 11 | F102: 8000 | H102: 0 | I102: 魏阵营抽
B103: 96 | C103: 12008#15 | D103: 1阵营5星 | E103: 11 | F103: 6000 | H103: 0 | I103: 魏阵营抽
B104: 97 | C104: 11001#50 | D104: 孙策 | E104: 12 | F104: 300 | H104: 84 | I104: 吴阵营抽
B105: 98 | C105: 11009#50 | D105: 小乔 | E105: 12 | F105: 300 | H105: 84 | I105: 吴阵营抽
B106: 99 | C106: 11014#50 | D106: 周瑜 | E106: 12 | F106: 300 | H106: 84 | I106: 吴阵营抽
B107: 100 | C107: 11040#50 | D107: 张昭 | E107: 12 | F107: 300 | H107: 84 | I107: 吴阵营抽
B108: 101 | C108: 11004#50 | D108: 大乔 | E108: 12 | F108: 1000 | H108: 84 | I108: 吴阵营抽
B109: 102 | C109: 11016#50 | D109: 孙坚 | E109: 12 | F109: 1000 | H109: 84 | I109: 吴阵营抽
B110: 103 | C110: 11017#50 | D110: 孙权 | E110: 12 | F110: 1000 | H110: 84 | I110: 吴阵营抽
B111: 104 | C111: 11021#50 | D111: 太史慈 | E111: 12 | F111: 1000 | H111: 84 | I111: 吴阵营抽
B112: 105 | C112: 11075#50 | D112: 孙尚香 | E112: 12 | F112: 1000 | H112: 84 | I112: 吴阵营抽
B113: 106 | C113: 11032#50 | D113: 甘宁 | E113: 12 | F113: 1000 | H113: 84 | I113: 吴阵营抽
B114: 107 | C114: 11035#50 | D114: 陆逊 | E114: 12 | F114: 1000 | H114: 84 | I114: 吴阵营抽
B115: 108 | C115: 11036#50 | D115: 鲁肃 | E115: 12 | F115: 1000 | H115: 84 | I115: 吴阵营抽
B116: 109 | C116: 11046#50 | D116: 吕蒙 | E116: 12 | F116: 1000 | H116: 84 | I116: 吴阵营抽
B117: 110 | C117: 11065#30 | D117: 凌统 | E117: 12 | F117: 17450 | H117: 0 | I117: 吴阵营抽
B118: 111 | C118: 11066#30 | D118: 步练师 | E118: 12 | F118: 17450 | H118: 0 | I118: 吴阵营抽
B119: 112 | C119: 11067#30 | D119: 少年周瑜 | E119: 12 | F119: 17450 | H119: 0 | I119: 吴阵营抽
B120: 113 | C120: 11068#30 | D120: 少女小乔 | E120: 12 | F120: 17450 | H120: 0 | I120: 吴阵营抽
B121: 114 | C121: 12009#25 | D121: 3阵营5星 | E121: 12 | F121: 6000 | H121: 0 | I121: 吴阵营抽
B122: 115 | C122: 12009#20 | D122: 3阵营5星 | E122: 12 | F122: 8000 | H122: 0 | I122: 吴阵营抽
B123: 116 | C123: 12009#15 | D123: 3阵营5星 | E123: 12 | F123: 6000 | H123: 0 | I123: 吴阵营抽
B124: 117 | C124: 11022#50 | D124: 诸葛亮 | E124: 13 | F124: 300 | H124: 83 | I124: 蜀阵营抽
B125: 118 | C125: 11023#50 | D125: 赵云 | E125: 13 | F125: 300 | H125: 83 | I125: 蜀阵营抽
B126: 119 | C126: 11074#50 | D126: 刘禅 | E126: 13 | F126: 300 | H126: 83 | I126: 蜀阵营抽
B127: 120 | C127: 11077#50 | D127: 黄忠 | E127: 13 | F127: 300 | H127: 83 | I127: 蜀阵营抽
B128: 121 | C128: 11007#50 | D128: 刘备 | E128: 13 | F128: 1000 | H128: 83 | I128: 蜀阵营抽
B129: 122 | C129: 11010#50 | D129: 马超 | E129: 13 | F129: 1000 | H129: 83 | I129: 蜀阵营抽
B130: 123 | C130: 11012#50 | D130: 张飞 | E130: 13 | F130: 1000 | H130: 83 | I130: 蜀阵营抽
B131: 124 | C131: 11015#50 | D131: 关羽 | E131: 13 | F131: 1000 | H131: 83 | I131: 蜀阵营抽
B132: 125 | C132: 11033#50 | D132: 黄月英 | E132: 13 | F132: 1000 | H132: 83 | I132: 蜀阵营抽
B133: 126 | C133: 11029#50 | D133: 魏延 | E133: 13 | F133: 1000 | H133: 83 | I133: 蜀阵营抽
B134: 127 | C134: 11030#50 | D134: 庞统 | E134: 13 | F134: 1000 | H134: 83 | I134: 蜀阵营抽
B135: 128 | C135: 11034#50 | D135: 马岱 | E135: 13 | F135: 1000 | H135: 83 | I135: 蜀阵营抽
B136: 129 | C136: 11039#50 | D136: 姜维 | E136: 13 | F136: 1000 | H136: 83 | I136: 蜀阵营抽
B137: 130 | C137: 11061#30 | D137: 孟获 | E137: 13 | F137: 17450 | H137: 0 | I137: 蜀阵营抽
B138: 131 | C138: 11062#30 | D138: 祝融 | E138: 13 | F138: 17450 | H138: 0 | I138: 蜀阵营抽
B139: 132 | C139: 11063#30 | D139: 少年赵云 | E139: 13 | F139: 17450 | H139: 0 | I139: 蜀阵营抽
B140: 133 | C140: 11064#30 | D140: 少年关羽 | E140: 13 | F140: 17450 | H140: 0 | I140: 蜀阵营抽
B141: 134 | C141: 12011#25 | D141: 2阵营5星 | E141: 13 | F141: 6000 | H141: 0 | I141: 蜀阵营抽
B142: 135 | C142: 12011#20 | D142: 2阵营5星 | E142: 13 | F142: 8000 | H142: 0 | I142: 蜀阵营抽
B143: 136 | C143: 12011#15 | D143: 2阵营5星 | E143: 13 | F143: 6000 | H143: 0 | I143: 蜀阵营抽
B144: 137 | C144: 11026#50 | D144: 吕布 | E144: 14 | F144: 300 | H144: 82 | I144: 群阵营抽
B145: 138 | C145: 11041#50 | D145: 华雄 | E145: 14 | F145: 300 | H145: 82 | I145: 群阵营抽
B146: 139 | C146: 11076#50 | D146: 左慈 | E146: 14 | F146: 300 | H146: 82 | I146: 群阵营抽
B147: 140 | C147: 11078#50 | D147: 陈宫 | E147: 14 | F147: 300 | H147: 82 | I147: 群阵营抽
B148: 141 | C148: 11013#50 | D148: 袁绍 | E148: 14 | F148: 1000 | H148: 82 | I148: 群阵营抽
B149: 142 | C149: 11019#50 | D149: 董卓 | E149: 14 | F149: 1000 | H149: 82 | I149: 群阵营抽
B150: 143 | C150: 11024#50 | D150: 华佗 | E150: 14 | F150: 1000 | H150: 82 | I150: 群阵营抽
B151: 144 | C151: 11042#50 | D151: 袁术 | E151: 14 | F151: 1000 | H151: 82 | I151: 群阵营抽
B152: 145 | C152: 11043#50 | D152: 貂蝉 | E152: 14 | F152: 1000 | H152: 82 | I152: 群阵营抽
B153: 146 | C153: 11025#50 | D153: 贾诩 | E153: 14 | F153: 1000 | H153: 82 | I153: 群阵营抽
B154: 147 | C154: 11027#50 | D154: 张角 | E154: 14 | F154: 1000 | H154: 82 | I154: 群阵营抽
B155: 148 | C155: 11037#50 | D155: 公孙瓒 | E155: 14 | F155: 1000 | H155: 82 | I155: 群阵营抽
B156: 149 | C156: 11038#50 | D156: 于吉 | E156: 14 | F156: 1000 | H156: 82 | I156: 群阵营抽
B157: 150 | C157: 11069#30 | D157: 文丑 | E157: 14 | F157: 17450 | H157: 0 | I157: 群阵营抽
B158: 151 | C158: 11070#30 | D158: 颜良 | E158: 14 | F158: 17450 | H158: 0 | I158: 群阵营抽
B159: 152 | C159: 11071#30 | D159: 少年吕布 | E159: 14 | F159: 17450 | H159: 0 | I159: 群阵营抽
B160: 153 | C160: 11072#30 | D160: 少女貂蝉 | E160: 14 | F160: 17450 | H160: 0 | I160: 群阵营抽
B161: 154 | C161: 12010#25 | D161: 4阵营5星 | E161: 14 | F161: 6000 | H161: 0 | I161: 群阵营抽
B162: 155 | C162: 12010#20 | D162: 4阵营5星 | E162: 14 | F162: 8000 | H162: 0 | I162: 群阵营抽
B163: 156 | C163: 12010#15 | D163: 4阵营5星 | E163: 14 | F163: 6000 | H163: 0 | I163: 群阵营抽
B164: 157 | C164: 10072#1 | D164: 少女貂蝉 | E164: 20 | F164: 1026 | H164: 0 | I164: 首次单抽 | J164: 4
B165: 158 | C165: 10047#1 | D165: 赤肥肥 | E165: 21 | F165: 15800 | H165: 0 | I165: 2次单抽 | J165: 3
B166: 159 | C166: 10048#1 | D166: 银肥肥 | E166: 21 | F166: 15800 | H166: 0 | I166: 2次单抽 | J166: 3
B167: 160 | C167: 10049#1 | D167: 苍肥肥 | E167: 21 | F167: 15800 | H167: 0 | I167: 2次单抽 | J167: 3
B168: 161 | C168: 10050#1 | D168: 金肥肥 | E168: 21 | F168: 15800 | H168: 0 | I168: 2次单抽 | J168: 3
B169: 162 | C169: 10051#1 | D169: 阳魔 | E169: 21 | F169: 7900 | H169: 0 | I169: 2次单抽 | J169: 3
B170: 163 | C170: 10052#1 | D170: 阴魔 | E170: 21 | F170: 7900 | H170: 0 | I170: 2次单抽 | J170: 3
B171: 164 | C171: 10024#1 | D171: 许槿然 | E171: 22 | F171: 1026 | H171: 0 | I171: 首次十连 | J171: 4
B172: 165 | C172: 10025#1 | D172: 炎琪儿 | E172: 22 | F172: 1026 | H172: 0 | I172: 首次十连 | J172: 4
B173: 166 | C173: 10026#1 | D173: 楚恒 | E173: 22 | F173: 513 | H173: 0 | I173: 首次十连 | J173: 4
B174: 167 | C174: 10027#1 | D174: 柳月 | E174: 22 | F174: 513 | H174: 0 | I174: 首次十连 | J174: 4
B175: 168 | C175: 10028#1 | D175: 岑以航 | E175: 22 | F175: 513 | H175: 0 | I175: 首次十连 | J175: 4
B176: 169 | C176: 10029#1 | D176: 姜燧 | E176: 22 | F176: 1026 | H176: 0 | I176: 首次十连 | J176: 4
B177: 170 | C177: 10030#1 | D177: 晏息 | E177: 22 | F177: 1026 | H177: 0 | I177: 首次十连 | J177: 4
B178: 171 | C178: 10031#1 | D178: 冉宜 | E178: 22 | F178: 1026 | H178: 0 | I178: 首次十连 | J178: 4
B179: 172 | C179: 10032#1 | D179: 孙晴 | E179: 22 | F179: 1026 | H179: 0 | I179: 首次十连 | J179: 4
B180: 173 | C180: 10033#1 | D180: 艾欣 | E180: 22 | F180: 1026 | H180: 0 | I180: 首次十连 | J180: 4
B181: 174 | C181: 10034#1 | D181: 影蓟 | E181: 22 | F181: 513 | H181: 0 | I181: 首次十连 | J181: 4
B182: 175 | C182: 10035#1 | D182: 辛夷 | E182: 22 | F182: 513 | H182: 0 | I182: 首次十连 | J182: 4
B183: 176 | C183: 10036#1 | D183: 岑以璇 | E183: 22 | F183: 1026 | H183: 0 | I183: 首次十连 | J183: 4
B184: 177 | C184: 10037#1 | D184: 薛苓 | E184: 22 | F184: 1026 | H184: 0 | I184: 首次十连 | J184: 4
B185: 178 | C185: 10038#1 | D185: 伏冥 | E185: 22 | F185: 1026 | H185: 0 | I185: 首次十连 | J185: 4
B186: 179 | C186: 10039#1 | D186: 呼延腾 | E186: 22 | F186: 1026 | H186: 0 | I186: 首次十连 | J186: 4
B187: 180 | C187: 10040#1 | D187: 贾裴武 | E187: 22 | F187: 1026 | H187: 0 | I187: 首次十连 | J187: 4
B188: 181 | C188: 10041#1 | D188: 孟灿 | E188: 22 | F188: 1026 | H188: 0 | I188: 首次十连 | J188: 4
B189: 182 | C189: 10042#1 | D189: 白木 | E189: 22 | F189: 1026 | H189: 0 | I189: 首次十连 | J189: 4
B190: 183 | C190: 10043#1 | D190: 紫川 | E190: 22 | F190: 1026 | H190: 0 | I190: 首次十连 | J190: 4
B191: 184 | C191: 10044#1 | D191: 靖之 | E191: 22 | F191: 513 | H191: 0 | I191: 首次十连 | J191: 4
B192: 185 | C192: 10045#1 | D192: 殷婉儿 | E192: 22 | F192: 1026 | H192: 0 | I192: 首次十连 | J192: 4
B193: 186 | C193: 10046#1 | D193: 林越 | E193: 22 | F193: 513 | H193: 0 | I193: 首次十连 | J193: 4
B194: 187 | C194: 10047#1 | D194: 赤肥肥 | E194: 22 | F194: 15800 | H194: 0 | I194: 首次十连 | J194: 3
B195: 188 | C195: 10048#1 | D195: 银肥肥 | E195: 22 | F195: 15800 | H195: 0 | I195: 首次十连 | J195: 3
B196: 189 | C196: 10049#1 | D196: 苍肥肥 | E196: 22 | F196: 15800 | H196: 0 | I196: 首次十连 | J196: 3
B197: 190 | C197: 10050#1 | D197: 金肥肥 | E197: 22 | F197: 15800 | H197: 0 | I197: 首次十连 | J197: 3
B198: 191 | C198: 10051#1 | D198: 阳魔 | E198: 22 | F198: 7900 | H198: 0 | I198: 首次十连 | J198: 3
B199: 192 | C199: 10052#1 | D199: 阴魔 | E199: 22 | F199: 7900 | H199: 0 | I199: 首次十连 | J199: 3
B200: 193 | C200: 10008#1 | D200: 颜无雍 | E200: 23 | F200: 20 | H200: 0 | I200: 2次十连 | J200: 5
... 594 more rows

Sheet Sheet1
B2: 道具id | C2: 道具数量 | D2: 道具类型 | E2: 道具库 | F2: 权重
B3: 11
H7: 4星万能碎片*10 | I7: 7
H8: 4星英雄 | I8: 60
H9: 5星英雄 | I9: 9 | J9: 真：伪=4：3
H10: 5星万能碎片*10 | I10: 24
H13: 4星万能碎片*10 | I13: 40
H14: 4星英雄 | I14: 23.3
H15: 5星英雄 | I15: 8.7 | J15: 真：伪=4：3
H16: 5星万能碎片*10 | I16: 28

Sheet Sheet2
E1: 品质 | F1: 角色属性（1、火；2、风；3、水；4、地；5.光；6.暗） | I1: s属性 | J1: 星级 | O1: 权重
A2: 0 | B2: 12002 | C2: 水系4星随机碎片 | D2: =B2 -> 12002 | E2: 4 | F2: 3 | I2: =VLOOKUP(F2,$G$12:$H$17,2,FALSE) -> 水 | J2: =IF(B2<13000,E2,51) -> 4 | L2: #10 | M2: =D2&L2 -> 12002#10 | N2: =C2 -> 水系4星随机碎片 | O2: 7 | P2: =O2 -> 7 | Q2: =ROUND(P2*1000,0) -> 7000 | T2: 10001 | U2: 夏侯鸿天 | V2: 11001 | W2: 夏侯鸿天碎片 | X2: 5 | Y2: 11001 | Z2: 5 | AC2: 11001#50 | AD2: =LEFT(AC2,5) -> 11001 | AE2: =VLOOKUP(--AD2,$Y:$Z,2,FALSE) -> 5
A3: 0 | B3: 12003 | C3: 火系4星随机碎片 | D3: =B3 -> 12003 | E3: 4 | F3: 1 | I3: 火 | J3: 4 | L3: =L2 -> #10 | M3: 12003#10 | N3: 火系4星随机碎片 | O3: =O2 -> 7 | P3: =O3 -> 7 | Q3: 7000 | T3: 10002 | U3: 石御霏 | V3: 11002 | W3: 石御霏碎片 | X3: 5 | Y3: 11002 | Z3: 5 | AC3: 11007#50 | AD3: =LEFT(AC3,5) -> 11007 | AE3: =VLOOKUP(--AD3,$Y:$Z,2,FALSE) -> 5
A4: 0 | B4: 12004 | C4: 地系4星随机碎片 | D4: 12004 | E4: 4 | F4: 4 | I4: 地 | J4: 4 | L4: #10 | M4: 12004#10 | N4: 地系4星随机碎片 | O4: =O3 -> 7 | P4: 7 | Q4: 7000 | T4: 10003 | U4: 叶辽 | V4: 11003 | W4: 叶辽碎片 | X4: 5 | Y4: 11003 | Z4: 5 | AC4: 11010#50 | AD4: 11010 | AE4: 5
A5: 0 | B5: 12005 | C5: 风系4星随机碎片 | D5: 12005 | E5: 4 | F5: 2 | I5: 风 | J5: 4 | L5: #10 | M5: 12005#10 | N5: 风系4星随机碎片 | O5: =O4 -> 7 | P5: 7 | Q5: 7000 | T5: 10004 | U5: 孔谦 | V5: 11004 | W5: 孔谦碎片 | X5: 5 | Y5: 11004 | Z5: 5 | AC5: 11021#50 | AD5: 11021 | AE5: 5
A6: 0 | B6: 12006 | C6: 光系4星随机碎片 | D6: 12006 | E6: 4 | F6: 5 | I6: 光 | J6: 4 | L6: #10 | M6: 12006#10 | N6: 光系4星随机碎片 | O6: 20 | P6: 20 | Q6: 20000 | T6: 10005 | U6: 兰卿 | V6: 11005 | W6: 兰卿碎片 | X6: 5 | Y6: 11005 | Z6: 5 | AC6: 11036#40 | AD6: 11036 | AE6: 4
A7: 0 | B7: 12007 | C7: 暗系4星随机碎片 | D7: 12007 | E7: 4 | F7: 6 | I7: 暗 | J7: 4 | L7: #10 | M7: 12007#10 | N7: 暗系4星随机碎片 | O7: 20 | P7: 20 | Q7: 20000 | T7: 10006 | U7: 朱贺 | V7: 11006 | W7: 朱贺碎片 | X7: 5 | Y7: 11006 | Z7: 5 | AC7: 11037#40 | AD7: 11037 | AE7: 4
A8: 0 | B8: 12008 | C8: 水系5星随机碎片 | D8: 12008 | E8: 5 | F8: 3 | I8: 水 | J8: 5 | L8: #10 | M8: 12008#10 | N8: 水系5星随机碎片 | O8: 24 | P8: 24 | Q8: 24000 | T8: 10007 | U8: 应茹 | V8: 11007 | W8: 应茹碎片 | X8: 5 | Y8: 11007 | Z8: 5 | AC8: 11039#40 | AD8: 11039 | AE8: 4
A9: 0 | B9: 12009 | C9: 火系5星随机碎片 | D9: 12009 | E9: 5 | F9: 1 | I9: 火 | J9: 5 | L9: #10 | M9: 12009#10 | N9: 火系5星随机碎片 | O9: =O8 -> 24 | P9: 24 | Q9: 24000 | T9: 10008 | U9: 颜无雍 | V9: 11008 | W9: 颜无雍碎片 | X9: 5 | Y9: 11008 | Z9: 5 | AC9: 11043#40 | AD9: 11043 | AE9: 4
A10: 0 | B10: 12010 | C10: 地系5星随机碎片 | D10: 12010 | E10: 5 | F10: 4 | I10: 地 | J10: 5 | L10: #10 | M10: 12010#10 | N10: 地系5星随机碎片 | O10: =O9 -> 24 | P10: 24 | Q10: 24000 | T10: 10009 | U10: 祁菲 | V10: 11009 | W10: 祁菲碎片 | X10: 5 | Y10: 11009 | Z10: 5 | AC10: 14036#50 | AD10: 14036 | AE10: 4
A11: 0 | B11: 12011 | C11: 风系5星随机碎片 | D11: 12011 | E11: 5 | F11: 2 | G11: 属性 | I11: 风 | J11: 5 | L11: #10 | M11: 12011#10 | N11: 风系5星随机碎片 | O11: =O10 -> 24 | P11: 24 | Q11: 24000 | T11: 10010 | U11: 颜祈佳 | V11: 11010 | W11: 颜祈佳碎片 | X11: 5 | Y11: 11010 | Z11: 5 | AC11: 14037#50 | AD11: 14037 | AE11: 4
A12: 1 | B12: 10006 | C12: 朱贺 | D12: =VLOOKUP(B12,$T:$W,3,FALSE) -> 11006 | E12: 5 | F12: 1 | G12: 1 | H12: 火 | I12: 光暗 | J12: 5 | L12: #10 | M12: 12019#10 | N12: 光暗5星随机碎片 | O12: 28 | P12: 28 | Q12: 28000 | T12: 10011 | U12: 尹正霄 | V12: 11011 | W12: 尹正霄碎片 | X12: 5 | Y12: 11011 | Z12: 5 | AC12: 14039#50 | AD12: 14039 | AE12: 4
A13: 1 | B13: 10012 | C13: 慕容子期 | D13: =VLOOKUP(B13,$T:$W,3,FALSE) -> 11012 | E13: 5 | F13: 1 | G13: 2 | H13: 风 | I13: =VLOOKUP(F12,$G$12:$H$17,2,FALSE) -> 火 | J13: =IF(B12<13000,E12,51) -> 5 | K13: =IF(--MID(D12,2,1)=1,IF(--RIGHT(D12,2)<24,50,40),50) -> 50 | L13: ="#"&K13 -> #50 | M13: =D12&L13 -> 11006#50 | N13: =C12 -> 朱贺 | O13: =VLOOKUP(J13,$G$23:$H$25,2,FALSE) -> 3.857142857 | P13: =O13/4 -> 0.9642857143 | Q13: =ROUND(P13*1000,0) -> 964 | T13: 10012 | U13: 慕容子期 | V13: 11012 | W13: 慕容子期碎片 | X13: 5 | Y13: 11012 | Z13: 5 | AC13: 14043#50 | AD13: 14043 | AE13: 4
A14: 1 | B14: 10016 | C14: 枫元正 | D14: 11016 | E14: 5 | F14: 1 | G14: 3 | H14: 水 | I14: 火 | J14: 5 | K14: =IF(--MID(D13,2,1)=1,IF(--RIGHT(D13,2)<24,50,40),50) -> 50 | L14: ="#"&K14 -> #50 | M14: 11012#50 | N14: 慕容子期 | O14: =VLOOKUP(J14,$G$23:$H$25,2,FALSE) -> 3.857142857 | P14: =O14/4 -> 0.9642857143 | Q14: 964 | T14: 10013 | U14: 白梦凡 | V14: 11013 | W14: 白梦凡碎片 | X14: 5 | Y14: 11013 | Z14: 5 | AC14: 12002#10 | AD14: 12002 | AE14: 4
A15: 1 | B15: 10020 | C15: 司空染 | D15: 11020 | E15: 5 | F15: 1 | G15: 4 | H15: 地 | I15: 火 | J15: 5 | K15: 50 | L15: #50 | M15: 11016#50 | N15: 枫元正 | O15: 3.857142857 | P15: 0.9642857143 | Q15: 964 | T15: 10014 | U15: 颜无诡 | V15: 11014 | W15: 颜无诡碎片 | X15: 5 | Y15: 11014 | Z15: 5 | AC15: 12008#10 | AD15: 12008 | AE15: 5
A16: 1 | B16: 10025 | C16: 炎琪儿 | D16: 11025 | E16: 4 | F16: 1 | G16: 5 | H16: 光 | I16: 火 | J16: 5 | K16: 50 | L16: #50 | M16: 11020#50 | N16: 司空染 | O16: 3.857142857 | P16: 0.9642857143 | Q16: 964 | T16: 10015 | U16: 凝儿 | V16: 11015 | W16: 凝儿碎片 | X16: 5 | Y16: 11015 | Z16: 5 | AC16: 11006#50 | AD16: 11006 | AE16: 5
A17: 1 | B17: 10038 | C17: 伏冥 | D17: 11038 | E17: 4 | F17: 1 | G17: 6 | H17: 暗 | I17: 火 | J17: 4 | K17: 40 | L17: #40 | M17: 11025#40 | N17: 炎琪儿 | O17: 60 | P17: 15 | Q17: 15000 | T17: 10016 | U17: 枫元正 | V17: 11016 | W17: 枫元正碎片 | X17: 5 | Y17: 11016 | Z17: 5 | AC17: 11012#50 | AD17: 11012 | AE17: 5
A18: 1 | B18: 10040 | C18: 贾裴武 | D18: 11040 | E18: 4 | F18: 1 | I18: 火 | J18: 4 | K18: 40 | L18: #40 | M18: 11038#40 | N18: 伏冥 | O18: 60 | P18: 15 | Q18: 15000 | T18: 10017 | U18: 解幽 | V18: 11017 | W18: 解幽碎片 | X18: 5 | Y18: 11017 | Z18: 5 | AC18: 11016#50 | AD18: 11016 | AE18: 5
A19: 1 | B19: 10041 | C19: 孟灿 | D19: 11041 | E19: 4 | F19: 1 | I19: 火 | J19: 4 | K19: 40 | L19: #40 | M19: 11040#40 | N19: 贾裴武 | O19: 60 | P19: 15 | Q19: 15000 | T19: 10018 | U19: 紫苏 | V19: 11018 | W19: 紫苏碎片 | X19: 5 | Y19: 11018 | Z19: 5 | AC19: 11020#50 | AD19: 11020 | AE19: 5
A20: 1 | B20: 13025 | C20: 炎琪儿 | D20: 14025 | E20: 5 | F20: 1 | I20: 火 | J20: 4 | K20: 40 | L20: #40 | M20: 11041#40 | N20: 孟灿 | O20: 60 | P20: 15 | Q20: 15000 | T20: 10019 | U20: 云 | V20: 11019 | W20: 云碎片 | X20: 5 | Y20: 11019 | Z20: 5 | AC20: 11025#40 | AD20: 11025 | AE20: 4
A21: 1 | B21: 13038 | C21: 伏冥 | D21: 14038 | E21: 5 | F21: 1 | I21: 火 | J21: 51 | K21: 50 | L21: #50 | M21: 14025#50 | N21: 炎琪儿 | O21: 5.142857143 | P21: 1.285714286 | Q21: 1286 | T21: 10020 | U21: 司空染 | V21: 11020 | W21: 司空染碎片 | X21: 5 | Y21: 11020 | Z21: 5 | AC21: 11038#40 | AD21: 11038 | AE21: 4
A22: 1 | B22: 13040 | C22: 贾裴武 | D22: 14040 | E22: 5 | F22: 1 | G22: 权重 | I22: 火 | J22: 51 | K22: 50 | L22: #50 | M22: 14038#50 | N22: 伏冥 | O22: 5.142857143 | P22: 1.285714286 | Q22: 1286 | T22: 10021 | U22: 清然 | V22: 11021 | W22: 清然碎片 | X22: 5 | Y22: 11021 | Z22: 5 | AC22: 11040#40 | AD22: 11040 | AE22: 4
A23: 1 | B23: 13041 | C23: 孟灿 | D23: 14041 | E23: 5 | F23: 1 | G23: 4 | H23: 60 | I23: 火 | J23: 51 | K23: =IF(--MID(D22,2,1)=1,IF(--RIGHT(D22,2)<24,50,40),50) -> 50 | L23: #50 | M23: 14040#50 | N23: 贾裴武 | O23: 5.142857143 | P23: 1.285714286 | Q23: 1286 | T23: 10022 | U23: 云灵 | V23: 11022 | W23: 云灵碎片 | X23: 5 | Y23: 11022 | Z23: 5 | AC23: 11041#40 | AD23: 11041 | AE23: 4
A24: 2 | B24: 10002 | C24: 石御霏 | D24: 11002 | E24: 5 | F24: 2 | G24: 5 | H24: =9-H25 -> 3.857142857 | I24: 火 | J24: 51 | K24: 50 | L24: #50 | M24: 14041#50 | N24: 孟灿 | O24: 5.142857143 | P24: 1.285714286 | Q24: 1286 | T24: 10023 | U24: 荧荧 | V24: 11023 | W24: 荧荧碎片 | X24: 5 | Y24: 11023 | Z24: 5 | AC24: 14025#50 | AD24: 14025 | AE24: 4
A25: 2 | B25: 10004 | C25: 孔谦 | D25: 11004 | E25: 5 | F25: 2 | G25: 51 | H25: =9/7*4 -> 5.142857143 | I25: 风 | J25: 5 | K25: 50 | L25: #50 | M25: 11002#50 | N25: 石御霏 | O25: 3.857142857 | P25: =O25/5 -> 0.7714285714 | Q25: 771 | T25: 10024 | U25: 许槿然 | V25: 11024 | W25: 许槿然碎片 | X25: 4 | Y25: 11024 | Z25: 4 | AC25: 14038#50 | AD25: 14038 | AE25: 4
A26: 2 | B26: 10008 | C26: 颜无雍 | D26: 11008 | E26: 5 | F26: 2 | I26: 风 | J26: 5 | K26: 50 | L26: #50 | M26: 11004#50 | N26: 孔谦 | O26: 3.857142857 | P26: =O26/5 -> 0.7714285714 | Q26: 771 | T26: 10025 | U26: 炎琪儿 | V26: 11025 | W26: 炎琪儿碎片 | X26: 4 | Y26: 11025 | Z26: 4 | AC26: 14040#50 | AD26: 14040 | AE26: 4
A27: 2 | B27: 10019 | C27: 云 | D27: 11019 | E27: 5 | F27: 2 | I27: 风 | J27: 5 | K27: 50 | L27: #50 | M27: 11008#50 | N27: 颜无雍 | O27: 3.857142857 | P27: =O27/5 -> 0.7714285714 | Q27: 771 | T27: 10026 | U27: 楚恒 | V27: 11026 | W27: 楚恒碎片 | X27: 4 | Y27: 11026 | Z27: 4 | AC27: 14041#50 | AD27: 14041 | AE27: 4
A28: 2 | B28: 10022 | C28: 云灵 | D28: 11022 | E28: 5 | F28: 2 | I28: 风 | J28: 5 | K28: 50 | L28: #50 | M28: 11019#50 | N28: 云 | O28: 3.857142857 | P28: =O28/5 -> 0.7714285714 | Q28: 771 | T28: 10027 | U28: 柳月 | V28: 11027 | W28: 柳月碎片 | X28: 4 | Y28: 11027 | Z28: 4 | AC28: 12003#10 | AD28: 12003 | AE28: 4
A29: 2 | B29: 10024 | C29: 许槿然 | D29: 11024 | E29: 4 | F29: 2 | I29: 风 | J29: 5 | K29: 50 | L29: #50 | M29: 11022#50 | N29: 云灵 | O29: 3.857142857 | P29: =O29/5 -> 0.7714285714 | Q29: 771 | T29: 10028 | U29: 岑以航 | V29: 11028 | W29: 岑以航碎片 | X29: 4 | Y29: 11028 | Z29: 4 | AC29: 12009#10 | AD29: 12009 | AE29: 5
A30: 2 | B30: 10030 | C30: 晏息 | D30: 11030 | E30: 4 | F30: 2 | I30: 风 | J30: 4 | K30: 40 | L30: #40 | M30: 11024#40 | N30: 许槿然 | O30: 60 | P30: =O30/4 -> 15 | Q30: 15000 | T30: 10029 | U30: 姜燧 | V30: 11029 | W30: 姜燧碎片 | X30: 4 | Y30: 11029 | Z30: 4 | AC30: 11002#50 | AD30: 11002 | AE30: 5
A31: 2 | B31: 10042 | C31: 白木 | D31: 11042 | E31: 4 | F31: 2 | I31: 风 | J31: 4 | K31: 40 | L31: #40 | M31: 11030#40 | N31: 晏息 | O31: 60 | P31: 15 | Q31: 15000 | T31: 10030 | U31: 晏息 | V31: 11030 | W31: 晏息碎片 | X31: 4 | Y31: 11030 | Z31: 4 | AC31: 11004#50 | AD31: 11004 | AE31: 5
A32: 2 | B32: 10045 | C32: 殷婉儿 | D32: 11045 | E32: 4 | F32: 2 | I32: 风 | J32: =IF(B31<13000,E31,51) -> 4 | K32: 40 | L32: #40 | M32: 11042#40 | N32: 白木 | O32: 60 | P32: 15 | Q32: 15000 | T32: 10031 | U32: 冉宜 | V32: 11031 | W32: 冉宜碎片 | X32: 4 | Y32: 11031 | Z32: 4 | AC32: 11008#50 | AD32: 11008 | AE32: 5
A33: 2 | B33: 13024 | C33: 许槿然 | D33: 14024 | E33: 5 | F33: 2 | G33: 光暗权重 | I33: 风 | J33: 4 | K33: 40 | L33: #40 | M33: 11045#40 | N33: 殷婉儿 | O33: 60 | P33: 15 | Q33: 15000 | T33: 10032 | U33: 孙晴 | V33: 11032 | W33: 孙晴碎片 | X33: 4 | Y33: 11032 | Z33: 4 | AC33: 11019#50 | AD33: 11019 | AE33: 5
A34: 2 | B34: 13030 | C34: 晏息 | D34: 14030 | E34: 5 | F34: 2 | G34: 4 | H34: 23.3 | I34: 风 | J34: 51 | K34: 50 | L34: #50 | M34: 14024#50 | N34: 许槿然 | O34: 5.142857143 | P34: 1.285714286 | Q34: 1286 | T34: 10033 | U34: 艾欣 | V34: 11033 | W34: 艾欣碎片 | X34: 4 | Y34: 11033 | Z34: 4 | AC34: 11022#50 | AD34: 11022 | AE34: 5
A35: 2 | B35: 13042 | C35: 白木 | D35: 14042 | E35: 5 | F35: 2 | G35: 5 | H35: =8.7/7*3 -> 3.728571429 | I35: 风 | J35: 51 | K35: 50 | L35: #50 | M35: 14030#50 | N35: 晏息 | O35: 5.142857143 | P35: 1.285714286 | Q35: 1286 | T35: 10034 | U35: 影蓟 | V35: 11034 | W35: 影蓟碎片 | X35: 4 | Y35: 11034 | Z35: 4 | AC35: 11024#40 | AD35: =LEFT(AC35,5) -> 11024 | AE35: =VLOOKUP(--AD35,$Y:$Z,2,FALSE) -> 4
A36: 2 | B36: 13045 | C36: 殷婉儿 | D36: 14045 | E36: 5 | F36: 2 | G36: 51 | H36: =8.7-H35 -> 4.971428571 | I36: =VLOOKUP(F35,$G$12:$H$17,2,FALSE) -> 风 | J36: 51 | K36: 50 | L36: #50 | M36: =D35&L36 -> 14042#50 | N36: 白木 | O36: 5.142857143 | P36: 1.285714286 | Q36: =ROUND(P36*1000,0) -> 1286 | T36: 10035 | U36: 辛夷 | V36: 11035 | W36: 辛夷碎片 | X36: 4 | Y36: 11035 | Z36: 4 | AC36: 11030#40 | AD36: 11030 | AE36: 4
A37: 3 | B37: 10001 | C37: 夏侯鸿天 | D37: 11001 | E37: 5 | F37: 3 | I37: 风 | J37: 51 | K37: 50 | L37: #50 | M37: 14045#50 | N37: 殷婉儿 | O37: 5.142857143 | P37: 1.285714286 | Q37: 1286 | T37: 10036 | U37: 岑以璇 | V37: 11036 | W37: 岑以璇碎片 | X37: 4 | Y37: 11036 | Z37: 4 | AC37: 11042#40 | AD37: 11042 | AE37: 4
A38: 3 | B38: 10007 | C38: 应茹 | D38: 11007 | E38: 5 | F38: 3 | I38: 水 | J38: 5 | K38: 50 | L38: #50 | M38: 11001#50 | N38: 夏侯鸿天 | O38: 3.857142857 | P38: 0.9642857143 | Q38: 964 | T38: 10037 | U38: 薛苓 | V38: 11037 | W38: 薛苓碎片 | X38: 4 | Y38: 11037 | Z38: 4 | AC38: 11045#40 | AD38: 11045 | AE38: 4
A39: 3 | B39: 10010 | C39: 颜祈佳 | D39: 11010 | E39: 5 | F39: 3 | I39: 水 | J39: 5 | K39: 50 | L39: #50 | M39: 11007#50 | N39: 应茹 | O39: 3.857142857 | P39: 0.9642857143 | Q39: 964 | T39: 10038 | U39: 伏冥 | V39: 11038 | W39: 伏冥碎片 | X39: 4 | Y39: 11038 | Z39: 4 | AC39: 14024#50 | AD39: 14024 | AE39: 4
A40: 3 | B40: 10021 | C40: 清然 | D40: 11021 | E40: 5 | F40: 3 | I40: 水 | J40: 5 | K40: 50 | L40: #50 | M40: 11010#50 | N40: 颜祈佳 | O40: 3.857142857 | P40: 0.9642857143 | Q40: 964 | T40: 10039 | U40: 呼延腾 | V40: 11039 | W40: 呼延腾碎片 | X40: 4 | Y40: 11039 | Z40: 4 | AC40: 14030#50 | AD40: 14030 | AE40: 4
A41: 3 | B41: 10036 | C41: 岑以璇 | D41: 11036 | E41: 4 | F41: 3 | I41: 水 | J41: 5 | K41: 50 | L41: #50 | M41: 11021#50 | N41: 清然 | O41: 3.857142857 | P41: 0.9642857143 | Q41: 964 | T41: 10040 | U41: 贾裴武 | V41: 11040 | W41: 贾裴武碎片 | X41: 4 | Y41: 11040 | Z41: 4 | AC41: 14042#50 | AD41: 14042 | AE41: 4
A42: 3 | B42: 10037 | C42: 薛苓 | D42: 11037 | E42: 4 | F42: 3 | I42: 水 | J42: 4 | K42: 40 | L42: #40 | M42: 11036#40 | N42: 岑以璇 | O42: 60 | P42: 15 | Q42: 15000 | T42: 10041 | U42: 孟灿 | V42: 11041 | W42: 孟灿碎片 | X42: 4 | Y42: 11041 | Z42: 4 | AC42: 14045#50 | AD42: 14045 | AE42: 4
A43: 3 | B43: 10039 | C43: 呼延腾 | D43: 11039 | E43: 4 | F43: 3 | I43: 水 | J43: 4 | K43: 40 | L43: #40 | M43: 11037#40 | N43: 薛苓 | O43: 60 | P43: 15 | Q43: 15000 | T43: 10042 | U43: 白木 | V43: 11042 | W43: 白木碎片 | X43: 4 | Y43: 11042 | Z43: 4 | AC43: 12005#10 | AD43: 12005 | AE43: 4
A44: 3 | B44: 10043 | C44: 紫川 | D44: 11043 | E44: 4 | F44: 3 | I44: 水 | J44: 4 | K44: 40 | L44: #40 | M44: 11039#40 | N44: 呼延腾 | O44: 60 | P44: 15 | Q44: 15000 | T44: 10043 | U44: 紫川 | V44: 11043 | W44: 紫川碎片 | X44: 4 | Y44: 11043 | Z44: 4 | AC44: 12011#10 | AD44: 12011 | AE44: 5
A45: 3 | B45: 13036 | C45: 岑以璇 | D45: 14036 | E45: 5 | F45: 3 | I45: 水 | J45: 4 | K45: 40 | L45: #40 | M45: 11043#40 | N45: 紫川 | O45: 60 | P45: 15 | Q45: 15000 | T45: 10044 | U45: 靖之 | V45: 11044 | W45: 靖之碎片 | X45: 4 | Y45: 11044 | Z45: 4 | AC45: 11003#50 | AD45: 11003 | AE45: 5
A46: 3 | B46: 13037 | C46: 薛苓 | D46: 14037 | E46: 5 | F46: 3 | I46: 水 | J46: 51 | K46: 50 | L46: ="#"&K46 -> #50 | M46: 14036#50 | N46: 岑以璇 | O46: =VLOOKUP(J46,$G$23:$H$25,2,FALSE) -> 5.142857143 | P46: 1.285714286 | Q46: 1286 | T46: 10045 | U46: 殷婉儿 | V46: 11045 | W46: 殷婉儿碎片 | X46: 4 | Y46: 11045 | Z46: 4 | AC46: 11005#50 | AD46: 11005 | AE46: 5
A47: 3 | B47: 13039 | C47: 呼延腾 | D47: 14039 | E47: 5 | F47: 3 | I47: 水 | J47: 51 | K47: 50 | L47: #50 | M47: 14037#50 | N47: 薛苓 | O47: 5.142857143 | P47: 1.285714286 | Q47: 1286 | T47: 10046 | U47: 林越 | V47: 11046 | W47: 林越碎片 | X47: 4 | Y47: 11046 | Z47: 4 | AC47: 11011#50 | AD47: 11011 | AE47: 5
A48: 3 | B48: 13043 | C48: 紫川 | D48: 14043 | E48: 5 | F48: 3 | I48: 水 | J48: 51 | K48: 50 | L48: #50 | M48: 14039#50 | N48: 呼延腾 | O48: 5.142857143 | P48: 1.285714286 | Q48: 1286 | T48: 13024 | U48: 许槿然 | V48: 14024 | W48: 许槿然5星碎片 | Y48: 11047 | Z48: 3 | AC48: 11013#50 | AD48: 11013 | AE48: 5
A49: 4 | B49: 10003 | C49: 叶辽 | D49: 11003 | E49: 5 | F49: 4 | I49: 水 | J49: 51 | K49: 50 | L49: #50 | M49: 14043#50 | N49: 紫川 | O49: 5.142857143 | P49: 1.285714286 | Q49: 1286 | T49: 13025 | U49: 炎琪儿 | V49: 14025 | W49: 炎琪儿5星碎片 | Y49: 11048 | Z49: 3 | AC49: 11018#50 | AD49: 11018 | AE49: 5
A50: 4 | B50: 10005 | C50: 兰卿 | D50: 11005 | E50: 5 | F50: 4 | I50: 地 | J50: 5 | K50: 50 | L50: #50 | M50: 11003#50 | N50: 叶辽 | O50: 3.857142857 | P50: =O50/5 -> 0.7714285714 | Q50: 771 | T50: 13026 | U50: 楚恒 | V50: 14026 | W50: 楚恒5星碎片 | Y50: 11049 | Z50: 3 | AC50: 11029#40 | AD50: 11029 | AE50: 4
A51: 4 | B51: 10011 | C51: 尹正霄 | D51: 11011 | E51: 5 | F51: 4 | I51: 地 | J51: 5 | K51: 50 | L51: #50 | M51: 11005#50 | N51: 兰卿 | O51: 3.857142857 | P51: 0.7714285714 | Q51: 771 | T51: 13027 | U51: 柳月 | V51: 14027 | W51: 柳月5星碎片 | Y51: 11050 | Z51: 3 | AC51: 11031#40 | AD51: 11031 | AE51: 4
A52: 4 | B52: 10013 | C52: 白梦凡 | D52: 11013 | E52: 5 | F52: 4 | I52: 地 | J52: 5 | K52: 50 | L52: #50 | M52: 11011#50 | N52: 尹正霄 | O52: 3.857142857 | P52: 0.7714285714 | Q52: 771 | T52: 13028 | U52: 岑以航 | V52: 14028 | W52: 岑以航5星碎片 | Y52: 11051 | Z52: 3 | AC52: 11032#40 | AD52: 11032 | AE52: 4
A53: 4 | B53: 10018 | C53: 紫苏 | D53: 11018 | E53: 5 | F53: 4 | I53: 地 | J53: 5 | K53: 50 | L53: #50 | M53: 11013#50 | N53: 白梦凡 | O53: 3.857142857 | P53: 0.7714285714 | Q53: 771 | T53: 13029 | U53: 姜燧 | V53: 14029 | W53: 姜燧5星碎片 | Y53: 11052 | Z53: 3 | AC53: 11033#40 | AD53: 11033 | AE53: 4
A54: 4 | B54: 10029 | C54: 姜燧 | D54: 11029 | E54: 4 | F54: 4 | I54: 地 | J54: 5 | K54: 50 | L54: #50 | M54: 11018#50 | N54: 紫苏 | O54: 3.857142857 | P54: 0.7714285714 | Q54: 771 | T54: 13030 | U54: 晏息 | V54: 14030 | W54: 晏息5星碎片 | Y54: 12001 | Z54: 3 | AC54: 14029#50 | AD54: 14029 | AE54: 4
A55: 4 | B55: 10031 | C55: 冉宜 | D55: 11031 | E55: 4 | F55: 4 | I55: 地 | J55: 4 | K55: =IF(--MID(D54,2,1)=1,IF(--RIGHT(D54,2)<24,50,40),50) -> 40 | L55: #40 | M55: 11029#40 | N55: 姜燧 | O55: 60 | P55: =O55/4 -> 15 | Q55: 15000 | T55: 13031 | U55: 冉宜 | V55: 14031 | W55: 冉宜5星碎片 | Y55: 12002 | Z55: 4 | AC55: 14031#50 | AD55: 14031 | AE55: 4
A56: 4 | B56: 10032 | C56: 孙晴 | D56: 11032 | E56: 4 | F56: 4 | I56: 地 | J56: 4 | K56: 40 | L56: #40 | M56: 11031#40 | N56: 冉宜 | O56: 60 | P56: 15 | Q56: 15000 | T56: 13032 | U56: 孙晴 | V56: 14032 | W56: 孙晴5星碎片 | Y56: 12003 | Z56: 4 | AC56: 14032#50 | AD56: 14032 | AE56: 4
A57: 4 | B57: 10033 | C57: 艾欣 | D57: 11033 | E57: 4 | F57: 4 | I57: 地 | J57: 4 | K57: 40 | L57: #40 | M57: 11032#40 | N57: 孙晴 | O57: 60 | P57: 15 | Q57: 15000 | T57: 13033 | U57: 艾欣 | V57: 14033 | W57: 艾欣5星碎片 | Y57: 12004 | Z57: 4 | AC57: 14033#50 | AD57: 14033 | AE57: 4
A58: 4 | B58: 13029 | C58: 姜燧 | D58: 14029 | E58: 5 | F58: 4 | I58: 地 | J58: 4 | K58: 40 | L58: #40 | M58: 11033#40 | N58: 艾欣 | O58: 60 | P58: 15 | Q58: 15000 | T58: 13034 | U58: 影蓟 | V58: 14034 | W58: 影蓟5星碎片 | Y58: 12005 | Z58: 4 | AC58: 12004#10 | AD58: 12004 | AE58: 4
A59: 4 | B59: 13031 | C59: 冉宜 | D59: 14031 | E59: 5 | F59: 4 | I59: 地 | J59: 51 | K59: 50 | L59: #50 | M59: 14029#50 | N59: 姜燧 | O59: 5.142857143 | P59: 1.285714286 | Q59: 1286 | T59: 13035 | U59: 辛夷 | V59: 14035 | W59: 辛夷5星碎片 | Y59: 12006 | Z59: 4 | AC59: 12010#10 | AD59: 12010 | AE59: 5
A60: 4 | B60: 13032 | C60: 孙晴 | D60: 14032 | E60: 5 | F60: 4 | I60: 地 | J60: 51 | K60: 50 | L60: #50 | M60: 14031#50 | N60: 冉宜 | O60: 5.142857143 | P60: 1.285714286 | Q60: 1286 | T60: 13036 | U60: 岑以璇 | V60: 14036 | W60: 岑以璇5星碎片 | Y60: 12007 | Z60: 4 | AC60: 11015#50 | AD60: 11015 | AE60: 5
A61: 4 | B61: 13033 | C61: 艾欣 | D61: 14033 | E61: 5 | F61: 4 | I61: 地 | J61: 51 | K61: 50 | L61: #50 | M61: 14032#50 | N61: 孙晴 | O61: 5.142857143 | P61: 1.285714286 | Q61: 1286 | T61: 13037 | U61: 薛苓 | V61: 14037 | W61: 薛苓5星碎片 | Y61: 12008 | Z61: 5 | AC61: 11023#50 | AD61: 11023 | AE61: 5
A62: 5 | B62: 10015 | C62: 凝儿 | D62: 11015 | E62: 5 | F62: 5 | I62: 地 | J62: 51 | K62: 50 | L62: #50 | M62: 14033#50 | N62: 艾欣 | O62: 5.142857143 | P62: 1.285714286 | Q62: 1286 | T62: 13038 | U62: 伏冥 | V62: 14038 | W62: 伏冥5星碎片 | Y62: 12009 | Z62: 5 | AC62: 11026#40 | AD62: 11026 | AE62: 4
A63: 5 | B63: 10023 | C63: 荧荧 | D63: 11023 | E63: 5 | F63: 5 | I63: 光 | J63: 5 | K63: 50 | L63: #50 | M63: 11015#50 | N63: 凝儿 | O63: =VLOOKUP(J63,$G$34:$H$36,2,FALSE) -> 3.728571429 | P63: =O63/5 -> 0.7457142857 | Q63: 746 | T63: 13039 | U63: 呼延腾 | V63: 14039 | W63: 呼延腾5星碎片 | Y63: 12010 | Z63: 5 | AC63: 11027#40 | AD63: 11027 | AE63: 4
A64: 5 | B64: 10026 | C64: 楚恒 | D64: 11026 | E64: 4 | F64: 5 | I64: 光 | J64: =IF(B63<13000,E63,51) -> 5 | K64: 50 | L64: #50 | M64: 11023#50 | N64: 荧荧 | O64: =VLOOKUP(J64,$G$34:$H$36,2,FALSE) -> 3.728571429 | P64: =O64/5 -> 0.7457142857 | Q64: 746 | T64: 13040 | U64: 贾裴武 | V64: 14040 | W64: 贾裴武5星碎片 | Y64: 12011 | Z64: 5 | AC64: 11028#40 | AD64: 11028 | AE64: 4
A65: 5 | B65: 10027 | C65: 柳月 | D65: 11027 | E65: 4 | F65: 5 | I65: 光 | J65: 4 | K65: 40 | L65: #40 | M65: 11026#40 | N65: 楚恒 | O65: 23.3 | P65: =O65/7 -> 3.328571429 | Q65: 3329 | T65: 13041 | U65: 孟灿 | V65: 14041 | W65: 孟灿5星碎片 | Y65: 12012 | Z65: 4 | AC65: 11046#40 | AD65: 11046 | AE65: 4
A66: 5 | B66: 10028 | C66: 岑以航 | D66: 11028 | E66: 4 | F66: 5 | I66: 光 | J66: 4 | K66: 40 | L66: #40 | M66: 11027#40 | N66: 柳月 | O66: 23.3 | P66: 3.328571429 | Q66: 3329 | T66: 13042 | U66: 白木 | V66: 14042 | W66: 白木5星碎片 | Y66: 12013 | Z66: 5 | AC66: 14026#50 | AD66: 14026 | AE66: 4
A67: 5 | B67: 10046 | C67: 林越 | D67: 11046 | E67: 4 | F67: 5 | I67: 光 | J67: 4 | K67: 40 | L67: #40 | M67: 11028#40 | N67: =C66 -> 岑以航 | O67: 23.3 | P67: 3.328571429 | Q67: 3329 | T67: 13043 | U67: 紫川 | V67: 14043 | W67: 紫川5星碎片 | Y67: 12014 | Z67: 5 | AC67: 14027#50 | AD67: 14027 | AE67: =VLOOKUP(--AD67,$Y:$Z,2,FALSE) -> 4
A68: 5 | B68: 13026 | C68: 楚恒 | D68: 14026 | E68: 5 | F68: 5 | I68: 光 | J68: 4 | K68: 40 | L68: #40 | M68: 11046#40 | N68: 林越 | O68: 23.3 | P68: 3.328571429 | Q68: 3329 | T68: 13044 | U68: 靖之 | V68: 14044 | W68: 靖之5星碎片 | Y68: 12015 | Z68: 5 | AC68: 14028#50 | AD68: 14028 | AE68: 4
A69: 5 | B69: 13027 | C69: 柳月 | D69: 14027 | E69: 5 | F69: 5 | I69: 光 | J69: 51 | K69: 50 | L69: #50 | M69: 14026#50 | N69: 楚恒 | O69: 4.971428571 | P69: 0.7102040816 | Q69: 710 | T69: 13045 | U69: 殷婉儿 | V69: 14045 | W69: 殷婉儿5星碎片 | Y69: 12016 | Z69: 5 | AC69: 14046#50 | AD69: 14046 | AE69: 4
A70: 5 | B70: 13028 | C70: 岑以航 | D70: 14028 | E70: 5 | F70: 5 | I70: 光 | J70: 51 | K70: 50 | L70: #50 | M70: 14027#50 | N70: 柳月 | O70: 4.971428571 | P70: 0.7102040816 | Q70: 710 | T70: 13046 | U70: 林越 | V70: 14046 | W70: 林越5星碎片 | Y70: 12017 | Z70: 5 | AC70: 11009#50 | AD70: 11009 | AE70: 5
A71: 5 | B71: 13046 | C71: 林越 | D71: 14046 | E71: 5 | F71: 5 | I71: 光 | J71: 51 | K71: 50 | L71: #50 | M71: 14028#50 | N71: 岑以航 | O71: 4.971428571 | P71: =O71/7 -> 0.7102040816 | Q71: 710 | Y71: 12018 | Z71: 5 | AC71: 11014#50 | AD71: 11014 | AE71: 5
A72: 6 | B72: 10009 | C72: 祁菲 | D72: 11009 | E72: 5 | F72: 6 | I72: 光 | J72: 51 | K72: 50 | L72: #50 | M72: 14046#50 | N72: 林越 | O72: 4.971428571 | P72: 0.7102040816 | Q72: 710 | Y72: 12019 | Z72: 5 | AC72: 11017#50 | AD72: 11017 | AE72: 5
A73: 6 | B73: 10014 | C73: 颜无诡 | D73: 11014 | E73: 5 | F73: 6 | I73: 暗 | J73: 5 | K73: 50 | L73: #50 | M73: 11009#50 | N73: 祁菲 | O73: 3.728571429 | P73: =O73/5 -> 0.7457142857 | Q73: 746 | Y73: 13024 | Z73: 4 | AC73: 11034#40 | AD73: 11034 | AE73: 4
A74: 6 | B74: 10017 | C74: 解幽 | D74: 11017 | E74: 5 | F74: 6 | I74: 暗 | J74: 5 | K74: 50 | L74: #50 | M74: 11014#50 | N74: 颜无诡 | O74: 3.728571429 | P74: =O74/5 -> 0.7457142857 | Q74: 746 | Y74: 13025 | Z74: 4 | AC74: 11035#40 | AD74: 11035 | AE74: 4
A75: 6 | B75: 10034 | C75: 影蓟 | D75: 11034 | E75: 4 | F75: 6 | I75: 暗 | J75: 5 | K75: 50 | L75: #50 | M75: 11017#50 | N75: 解幽 | O75: 3.728571429 | P75: =O75/5 -> 0.7457142857 | Q75: 746 | Y75: 13026 | Z75: 4 | AC75: 11044#40 | AD75: 11044 | AE75: 4
A76: 6 | B76: 10035 | C76: 辛夷 | D76: 11035 | E76: 4 | F76: 6 | I76: 暗 | J76: 4 | K76: 40 | L76: #40 | M76: 11034#40 | N76: 影蓟 | O76: 23.3 | P76: 3.328571429 | Q76: 3329 | Y76: 13027 | Z76: 4 | AC76: 14034#50 | AD76: 14034 | AE76: 4
A77: 6 | B77: 10044 | C77: 靖之 | D77: =VLOOKUP(B77,$T:$W,3,FALSE) -> 11044 | E77: 4 | F77: 6 | I77: 暗 | J77: 4 | K77: 40 | L77: #40 | M77: 11035#40 | N77: 辛夷 | O77: 23.3 | P77: 3.328571429 | Q77: 3329 | Y77: 13028 | Z77: 4 | AC77: 14035#50 | AD77: 14035 | AE77: 4
A78: 6 | B78: 13034 | C78: 影蓟 | D78: 14034 | E78: 5 | F78: 6 | I78: 暗 | J78: 4 | K78: 40 | L78: #40 | M78: 11044#40 | N78: 靖之 | O78: 23.3 | P78: 3.328571429 | Q78: 3329 | Y78: 13029 | Z78: 4 | AC78: 14044#50 | AD78: 14044 | AE78: 4
A79: 6 | B79: 13035 | C79: 辛夷 | D79: 14035 | E79: 5 | F79: 6 | I79: 暗 | J79: 51 | K79: 50 | L79: #50 | M79: 14034#50 | N79: 影蓟 | O79: 4.971428571 | P79: 0.7102040816 | Q79: 710 | Y79: 13030 | Z79: 4 | AC79: 12006#10 | AD79: 12006 | AE79: 4
A80: 6 | B80: 13044 | C80: 靖之 | D80: 14044 | E80: 5 | F80: 6 | I80: 暗 | J80: 51 | K80: 50 | L80: #50 | M80: 14035#50 | N80: 辛夷 | O80: 4.971428571 | P80: 0.7102040816 | Q80: 710 | Y80: 13031 | Z80: 4 | AC80: 12007#10 | AD80: 12007 | AE80: 4
I81: 暗 | J81: 51 | K81: 50 | L81: #50 | M81: 14044#50 | N81: 靖之 | O81: 4.971428571 | P81: 0.7102040816 | Q81: 710 | Y81: 13032 | Z81: 4 | AC81: 12019#10 | AD81: 12019 | AE81: 5
Y82: 13033 | Z82: 4
Y83: 13034 | Z83: 4
Y84: 13035 | Z84: 4
Y85: 13036 | Z85: 4
Y86: 13037 | Z86: 4
Y87: 13038 | Z87: 4
Y88: 13039 | Z88: 4
Y89: 13040 | Z89: 4
Y90: 13041 | Z90: 4
Y91: 13042 | Z91: 4
Y92: 13043 | Z92: 4
Y93: 13044 | Z93: 4
Y94: 13045 | Z94: 4
Y95: 13046 | Z95: 4
Y96: =Y73+1000 -> 14024 | Z96: 4
Y97: 14025 | Z97: 4
Y98: 14026 | Z98: 4
Y99: 14027 | Z99: 4
Y100: 14028 | Z100: 4
Y101: 14029 | Z101: 4
Y102: 14030 | Z102: 4
Y103: 14031 | Z103: 4
Y104: 14032 | Z104: 4
Y105: 14033 | Z105: 4
Y106: 14034 | Z106: 4
Y107: 14035 | Z107: 4
Y108: 14036 | Z108: 4
Y109: 14037 | Z109: =Z108 -> 4
Y110: 14038 | Z110: 4
Y111: 14039 | Z111: 4
Y112: 14040 | Z112: 4
Y113: 14041 | Z113: 4
Y114: 14042 | Z114: 4
Y115: 14043 | Z115: 4
Y116: 14044 | Z116: 4
Y117: 14045 | Z117: 4
Y118: 14046 | Z118: 4

Sheet Sheet3
E3: 10007 | F3: 应茹
E4: 10008 | F4: 颜无雍 | L4: 10001#1 | M4: =--LEFT(L4,5) -> 10001 | N4: =VLOOKUP(M4,[2]ItemConfig!$B:$C,2,FALSE) -> 伏羲
E5: 10010 | F5: 颜祈佳 | L5: 10002#1 | M5: =--LEFT(L5,5) -> 10002 | N5: =VLOOKUP(M5,[2]ItemConfig!$B:$C,2,FALSE) -> 洛神
E6: 10011 | F6: 尹正霄 | L6: 10003#1 | M6: 10003 | N6: =VLOOKUP(M6,[2]ItemConfig!$B:$C,2,FALSE) -> 猪八戒
E7: 10016 | F7: 枫元正 | L7: 10004#1 | M7: 10004 | N7: =VLOOKUP(M7,[2]ItemConfig!$B:$C,2,FALSE) -> 慈航道人
E8: 10018 | F8: 紫苏 | L8: 10005#1 | M8: 10005 | N8: =VLOOKUP(M8,[2]ItemConfig!$B:$C,2,FALSE) -> 妲己
E9: 10019 | F9: 云 | L9: 10006#1 | M9: 10006 | N9: =VLOOKUP(M9,[2]ItemConfig!$B:$C,2,FALSE) -> 共工
E10: 10021 | F10: 清然 | L10: 10007#1 | M10: 10007 | N10: =VLOOKUP(M10,[2]ItemConfig!$B:$C,2,FALSE) -> 唐僧
E11: 10022 | F11: 云灵 | L11: 10008#1 | M11: 10008 | N11: =VLOOKUP(M11,[2]ItemConfig!$B:$C,2,FALSE) -> 精卫
L12: 10009#1 | M12: 10009 | N12: =VLOOKUP(M12,[2]ItemConfig!$B:$C,2,FALSE) -> 龙吉公主
L13: 10010#1 | M13: 10010 | N13: =VLOOKUP(M13,[2]ItemConfig!$B:$C,2,FALSE) -> 孔雀明王
L14: 10011#1 | M14: 10011 | N14: =VLOOKUP(M14,[2]ItemConfig!$B:$C,2,FALSE) -> 雷震子
L15: 10012#1 | M15: 10012 | N15: =VLOOKUP(M15,[2]ItemConfig!$B:$C,2,FALSE) -> 降龙罗汉
L16: 10013#1 | M16: 10013 | N16: =VLOOKUP(M16,[2]ItemConfig!$B:$C,2,FALSE) -> 吕洞宾
L17: 10014#1 | M17: 10014 | N17: =VLOOKUP(M17,[2]ItemConfig!$B:$C,2,FALSE) -> 哪吒
L18: 10015#1 | M18: 10015 | N18: =VLOOKUP(M18,[2]ItemConfig!$B:$C,2,FALSE) -> 伏虎罗汉
L19: 10016#1 | M19: 10016 | N19: =VLOOKUP(M19,[2]ItemConfig!$B:$C,2,FALSE) -> 蚩尤
L20: 10017#1 | M20: 10017 | N20: =VLOOKUP(M20,[2]ItemConfig!$B:$C,2,FALSE) -> 嫦娥
L21: 10018#1 | M21: 10018 | N21: =VLOOKUP(M21,[2]ItemConfig!$B:$C,2,FALSE) -> 九命猫
L22: 10019#1 | M22: 10019 | N22: =VLOOKUP(M22,[2]ItemConfig!$B:$C,2,FALSE) -> 巨灵神
L23: 10020#1 | M23: 10020 | N23: =VLOOKUP(M23,[2]ItemConfig!$B:$C,2,FALSE) -> 姑获鸟
L24: 10021#1 | M24: 10021 | N24: =VLOOKUP(M24,[2]ItemConfig!$B:$C,2,FALSE) -> 东陵圣母
L25: 10022#1 | M25: 10022 | N25: =VLOOKUP(M25,[2]ItemConfig!$B:$C,2,FALSE) -> 达摩
L26: 10023#1 | M26: 10023 | N26: =VLOOKUP(M26,[2]ItemConfig!$B:$C,2,FALSE) -> 孙悟空
L27: 10024#1 | M27: 10024 | N27: =VLOOKUP(M27,[2]ItemConfig!$B:$C,2,FALSE) -> 姜子牙
L28: 10025#1 | M28: 10025 | N28: =VLOOKUP(M28,[2]ItemConfig!$B:$C,2,FALSE) -> 道德天尊
L29: 10026#1 | M29: 10026 | N29: =VLOOKUP(M29,[2]ItemConfig!$B:$C,2,FALSE) -> 东华帝君
L30: 10027#1 | M30: 10027 | N30: =VLOOKUP(M30,[2]ItemConfig!$B:$C,2,FALSE) -> 孟婆
L31: 10028#1 | M31: 10028 | N31: =VLOOKUP(M31,[2]ItemConfig!$B:$C,2,FALSE) -> 石矶娘娘
L32: 10029#1 | M32: 10029 | N32: =VLOOKUP(M32,[2]ItemConfig!$B:$C,2,FALSE) -> 月光菩萨
L33: 10030#1 | M33: 10030 | N33: =VLOOKUP(M33,[2]ItemConfig!$B:$C,2,FALSE) -> 梵天
L34: 10031#1 | M34: 10031 | N34: =VLOOKUP(M34,[2]ItemConfig!$B:$C,2,FALSE) -> 红孩儿
L35: 10032#1 | M35: 10032 | N35: =VLOOKUP(M35,[2]ItemConfig!$B:$C,2,FALSE) -> 吴刚
L36: 10033#1 | M36: 10033 | N36: =VLOOKUP(M36,[2]ItemConfig!$B:$C,2,FALSE) -> 净光天女
L37: 10034#1 | M37: =--LEFT(L37,5) -> 10034 | N37: =VLOOKUP(M37,[2]ItemConfig!$B:$C,2,FALSE) -> 帝释天
L38: 10035#1 | M38: 10035 | N38: =VLOOKUP(M38,[2]ItemConfig!$B:$C,2,FALSE) -> 妈祖
L39: 10036#1 | M39: 10036 | N39: =VLOOKUP(M39,[2]ItemConfig!$B:$C,2,FALSE) -> 赵公明
L40: 10037#1 | M40: 10037 | N40: =VLOOKUP(M40,[2]ItemConfig!$B:$C,2,FALSE) -> 罗刹
L41: 10038#1 | M41: 10038 | N41: =VLOOKUP(M41,[2]ItemConfig!$B:$C,2,FALSE) -> 夜叉
L42: 10039#1 | M42: 10039 | N42: =VLOOKUP(M42,[2]ItemConfig!$B:$C,2,FALSE) -> 普贤菩萨
L43: 10040#1 | M43: 10040 | N43: =VLOOKUP(M43,[2]ItemConfig!$B:$C,2,FALSE) -> 杨戬
L44: 10041#1 | M44: 10041 | N44: =VLOOKUP(M44,[2]ItemConfig!$B:$C,2,FALSE) -> 通天教主
L45: 10042#1 | M45: 10042 | N45: =VLOOKUP(M45,[2]ItemConfig!$B:$C,2,FALSE) -> 九天玄女
L46: 10043#1 | M46: 10043 | N46: =VLOOKUP(M46,[2]ItemConfig!$B:$C,2,FALSE) -> 太阴星君
L47: 10044#1 | M47: 10044 | N47: =VLOOKUP(M47,[2]ItemConfig!$B:$C,2,FALSE) -> 混世魔王
L48: 10045#1 | M48: 10045 | N48: =VLOOKUP(M48,[2]ItemConfig!$B:$C,2,FALSE) -> 百花仙子
L49: 10046#1 | M49: 10046 | N49: =VLOOKUP(M49,[2]ItemConfig!$B:$C,2,FALSE) -> 女英
L50: 10047#1 | M50: 10047 | N50: =VLOOKUP(M50,[2]ItemConfig!$B:$C,2,FALSE) -> 大火妖
L51: 10048#1 | M51: 10048 | N51: =VLOOKUP(M51,[2]ItemConfig!$B:$C,2,FALSE) -> 雪女
L52: 10049#1 | M52: 10049 | N52: =VLOOKUP(M52,[2]ItemConfig!$B:$C,2,FALSE) -> 娜迦王
L53: 10050#1 | M53: 10050 | N53: =VLOOKUP(M53,[2]ItemConfig!$B:$C,2,FALSE) -> 摩呼
L54: 10051#1 | M54: 10051 | N54: =VLOOKUP(M54,[2]ItemConfig!$B:$C,2,FALSE) -> 半仙
L55: 10052#1 | M55: 10052 | N55: =VLOOKUP(M55,[2]ItemConfig!$B:$C,2,FALSE) -> 荷莲
